Cogmind - Beta 10.2 @@@ ROGUE MODE // 2021.08.06 @ 17:56:17 Player: Olga Result: Self-destructed Performance ------------- Evolutions (1) 500 Regions Visited (3) 600 Robots Destroyed (31) 155 Value Destroyed (785) 785 Prototype IDs (4) 80 Alien Tech Used (0) 0 Bonus (0) 0 TOTAL SCORE: 2120 Bonus ------- None Cogmind --------- Core Integrity 56/400 Matter 300/300 Energy 100/100 System Corruption 0% Temperature Cool (0) Movement Core (50) Location -9/Materials Parts ------- > --- POWER (1) -------- (None) > --- PROPULSION (4) --- (None) > --- UTILITY (2) ------ Signal Interpreter > --- WEAPON (2) ------- Maul > --- INVENTORY (4) ---- Small Storage Unit High-capacity Matter Pod (93) High-capacity Matter Pod (0) Autogun Peak State ------------ > --- POWER ------------ Light Nuclear Core > --- PROPULSION ------- Aluminum Leg Aluminum Leg Aluminum Leg Aluminum Leg > --- UTILITY ---------- Small Storage Unit Signal Interpreter > --- WEAPON ----------- Assault Rifle Grenade Launcher > --- INVENTORY -------- Light Nuclear Core High-capacity Matter Pod Grenade Launcher [Rating: 11] Favorites ----------- Power Light Nuclear Core Engine Ion Engine Power Core Light Nuclear Core Propulsion Aluminum Leg Leg Aluminum Leg Utility Small Storage Unit Storage Small Storage Unit Processor Signal Interpreter Protection Light Armor Plating Weapon Assault Rifle Energy Gun Small Laser Ballistic Gun Assault Rifle Launcher Grenade Launcher Impact Weapon Maul Build | -11 -10 -10 -9 ------- Run | Scr Mat Min Mat Slots Evolved 2 | . . . 2 Power . | . . . . Propulsion 2 | . . . 2 Utility . | . . . . Weapon . | . . . . Parts Attached 23 | . 2 6 15 Power 2 | . 1 . 1 Engine . | . . . . Core 2 | . 1 . 1 Reactor . | . . . . Propulsion 7 | . . 2 5 Treads . | . . . . Leg 7 | . . 2 5 Wheel . | . . . . Hover . | . . . . Flight . | . . . . Utility 5 | . 1 1 3 Device . | . . . . Storage 3 | . 1 . 2 Processor 1 | . . 1 . Hackware . | . . . . Protection 1 | . . . 1 Artifact . | . . . . Weapon 9 | . . 3 6 Energy Gun 1 | . . . 1 Energy Cannon . | . . . . Ballistic Gun 4 | . . 1 3 Ballistic Cannon . | . . . . Launcher 3 | . . 2 1 Special Weapon . | . . . . Impact Weapon 1 | . . . 1 Slashing Weapon . | . . . . Piercing Weapon . | . . . . Special Melee Weapon . | . . . . Unidentified Prototypes . | . . . . Parts Lost 18 | . 1 2 15 Power 2 | . . . 2 Propulsion 9 | . . 2 7 Utility 1 | . . . 1 Weapon 6 | . 1 . 5 Highest Loss Streak 8 | . 1 1 8 Average Slot Usage (%) 83 | . 83 95 71 Engine 2 | . 5 . . Core 8 | . 7 14 5 Leg 28 | . 28 27 30 Storage 19 | . 21 27 9 Processor 3 | . . . 11 Energy Gun 2 | . 5 . . Ballistic Gun 10 | . 14 8 7 Launcher 6 | . . 15 3 Impact Weapon 1 | . . . 4 Naked Turns . | . . . . Heaviest Build 19 | 12 15 19 14 Greatest Support 40 | 20 20 20 40 Greatest Overweight (x) 1 | . . . 1 Average Overweight (x) . | . . . . Largest Inventory Capacity 6 | 6 6 6 6 Average Capacity 5 | 6 6 6 5 Most Carried 6 | 6 6 6 5 Average Carried 5 | 6 5 5 3 Final Capacity 6 | 6 6 6 4 Final Carried 6 | 6 6 5 4 Class Distribution -------------------- 75% | Mutant 24% | Scavenger-Mutant Dominant Class ---------------- Mutant | -10/Materials Mutant | -10/Mines Scavenger-Mutant | -9/Materials Resources | -11 -10 -10 -9 ----------- Run | Scr Mat Min Mat Matter Collected 834 | 172 184 132 346 Remotely . | . . . . Salvage Created 711 | . 229 152 330 Parts 60 | . 16 10 34 Haulers Intercepted . | . . . . Recyclers Shooed 1 | . 1 . . Parts Field Recycled . | . . . . Retrieved Matter . | . . . . Parts Self-Destructed . | . . . . Prevented . | . . . . Kills | -11 -10 -10 -9 ------- Run | Scr Mat Min Mat Combat Hostiles Destroyed 35 | . 5 12 18 Melee 2 | . . . 2 Guns 11 | . 5 3 3 AOE 22 | . . 9 13 Classes Destroyed 8 | . 2 3 3 Worker 1 | . . . 1 Tunneler 1 | . . 1 . Watcher 1 | . 1 . . Swarmer 11 | . . 3 8 Grunt 15 | . 5 2 8 Duelist 1 | . . . 1 Sentry 1 | . . . 1 Assembled 7 | . . 7 . Best Kill Streak 14 | . 2 8 14 Combat Bots Only 13 | . 2 7 13 Max Kills in Single Turn 5 | . 1 3 5 Gunslinging . | . . . . Exploded 5 | . . 3 5 Melee 1 | . . . 1 Uniques/NPCs Destroyed . | . . . . Combat | -11 -10 -10 -9 -------- Run | Scr Mat Min Mat Damage Taken 1995 | . 285 311 1399 Core 430 | . 60 26 344 Absorbed by Shields . | . . . . Core Remaining (%) 82 | 100 . 65 . Volleys Fired 74 | . 24 23 27 Largest 2 | . 2 2 2 Hottest 60 | . 60 60 60 Shots Fired 100 | . 31 28 41 Gun 75 | . 31 18 26 Cannon . | . . . . Launcher 25 | . . 10 15 Special . | . . . . Kinetic 68 | . 24 18 26 Thermal 7 | . 7 . . Explosive 25 | . . 10 15 Electromagnetic . | . . . . Robot Hit Streak 13 | . 9 4 13 Robot Miss Streak 3 | . 1 3 2 Penetration Max . | . . . . Secondary Targets . | . . . . Shots Hit Robots 84 | . 24 13 47 Core Hits 76 | . 15 23 38 Critical Hits . | . . . . Critical Kills . | . . . . Critical Parts Destroyed . | . . . . Melee Attacks 22 | . . . 22 Impact 22 | . . . 22 Slashing . | . . . . Piercing . | . . . . Sneak Attacks . | . . . . Combat Hostiles . | . . . . Follow-up Attacks . | . . . . Damage Inflicted 2317 | . 265 633 1419 Guns 614 | . 265 133 216 Cannons . | . . . . Explosions 1354 | . . 500 854 Melee 335 | . . . 335 Ramming 14 | . . . 14 Kinetic 546 | . 197 133 216 Thermal 68 | . 68 . . Explosive 1354 | . . 500 854 Electromagnetic . | . . . . Impact 335 | . . . 335 Slashing . | . . . . Piercing . | . . . . Highest Corruption . | . . . . Average Corruption . | . . . . Corruption Purged . | . . . . Overload Shots . | . . . . Overflow Damage 1 | . . . 1 Projectiles . | . . . . Explosions 1 | . . . 1 Melee . | . . . . Knockbacks . | . . . . Impact . | . . . . Kinetic . | . . . . Secondary . | . . . . Self-Inflicted Damage 35 | . . 24 11 Shots 2 | . . 1 1 Rammed 7 | . . . 7 Targets Rammed 7 | . . . 7 Kicked . | . . . . Crushed . | . . . . Highest Temperature 66 | . 66 26 14 Average Temperature 16 | . 38 6 8 Received Heat Transfer 764 | . 162 122 480 Siege Activations . | . . . . Robots Corrupted . | . . . . Combat Hostiles . | . . . . Parts Fried . | . . . . Impact Corruptions . | . . . . Robots Melted . | . . . . Combat Hostiles . | . . . . Parts Melted . | . . . . Heat Transferred 150 | . 150 . . Parts Sabotaged . | . . . . Parts Stolen . | . . . . Parts Stripped . | . . . . Power Chain Reactions . | . . . . Missiles Intercepted . | . . . . Alert | -11 -10 -10 -9 ------- Run | Scr Mat Min Mat Peak Influence 375 | . 181 75 375 Initial . | . . . . Average 125 | . 83 30 263 Maximum Alert Level 1 | . . . 1 Low Security (%) 76 | 100 100 100 28 Level 1 23 | . . . 71 Level 2 . | . . . . Level 3 . | . . . . Level 4 . | . . . . Level 5 . | . . . . High Security . | . . . . Max Security . | . . . . Squads Dispatched 3 | . 1 . 2 Investigation 1 | . 1 . . Extermination . | . . . . Reinforcement 2 | . . . 2 Assault . | . . . . Garrison . | . . . . Intercept . | . . . . Construction Impeded . | . . . . Haulers Reinforced . | . . . . Stealth | -11 -10 -10 -9 --------- Run | Scr Mat Min Mat Distress Signals 3 | . 1 1 1 Communications Jammed . | . . . . Distress Signals . | . . . . Times Spotted 50 | . 11 12 27 Peak Tracking Total 9 | . 5 4 9 Tactical Retreats 2 | . . . 2 Traps | -11 -10 -10 -9 ------- Run | Scr Mat Min Mat Traps Triggered 1 | . 1 . . Indirectly . | . . . . Trap Hack Attempts . | . . . . Triggered . | . . . . Disarmed . | . . . . Reprogrammed . | . . . . Reused . | . . . . Traps Extracted . | . . . . Installed . | . . . . Triggered . | . . . . Machines | -11 -10 -10 -9 ---------- Run | Scr Mat Min Mat Machines Disabled 1 | . . . 1 Max in Single Turn 1 | . . . 1 Machines Sabotaged . | . . . . Garrisons Compromised . | . . . . Overloaded Fab Kills . | . . . . Fab Network Shutdowns . | . . . . Hacking | -11 -10 -10 -9 --------- Run | Scr Mat Min Mat Machines Accessed 5 | . 4 . 1 Terminals 5 | . 4 . 1 Fabricators . | . . . . Repair Stations . | . . . . Recycling Units . | . . . . Scanalyzers . | . . . . Garrison Access . | . . . . Total Hacks 9 | . 7 . 2 Successful 4 | . 4 . . Failed 5 | . 3 . 2 Catastrophic 3 | . 2 . 1 Database Lockouts . | . . . . Manual 8 | . 6 . 2 Terminals 9 | . 7 . 2 Fabricators . | . . . . Repair Stations . | . . . . Recycling Units . | . . . . Scanalyzers . | . . . . Garrison Access . | . . . . Terminal Hacks 4 | . 4 . . Prototype ID Bank 2 | . 2 . . Branch Access Points 1 | . 1 . . Alert Level 1 | . 1 . . Fabricator Hacks . | . . . . Repair Station Hacks . | . . . . Recycling Unit Hacks . | . . . . Scanalyzer . | . . . . Garrison Access Hacks . | . . . . Unauthorized Hacks . | . . . . Terminals . | . . . . Fabricators . | . . . . Repair Stations . | . . . . Recycling Units . | . . . . Scanalyzers . | . . . . Garrison Access . | . . . . Data Cores Recovered . | . . . . Used . | . . . . Hacking Detections 3 | . 2 . 1 Full Trace Events . | . . . . Feedback Events . | . . . . Feedback Blocked . | . . . . Robot Schematics Acquired . | . . . . Robots Built . | . . . . Matter . | . . . . Time . | . . . . Total Robot Build Rating . | . . . . Part Schematics Acquired . | . . . . Parts Built . | . . . . Matter . | . . . . Time . | . . . . Total Part Build Rating . | . . . . Parts Repaired . | . . . . Time . | . . . . Parts Recycled . | . . . . Recycled Matter . | . . . . Retrieved Matter . | . . . . Retrieved Components . | . . . . Parts Scanalyzed . | . . . . Part Schematics Acquired . | . . . . Parts Damaged . | . . . . Bothacking | -11 -10 -10 -9 ------------ Run | Scr Mat Min Mat Used RIF Installer . | . . . . Robots Hacked . | . . . . Non-combat . | . . . . Combat . | . . . . Robot Hacks Applied . | . . . . Relay Couplers Released . | . . . . Robots Rewired . | . . . . Allies Hacked . | . . . . Hacks Repelled . | . . . . Allies | -11 -10 -10 -9 -------- Run | Scr Mat Min Mat Total Allies . | . . . . Largest Group . | . . . . Highest-Rated Group . | . . . . Highest-Rated Ally . | . . . . Total Orders . | . . . . Ally Attacks . | . . . . Total Damage . | . . . . Kills . | . . . . Allies Corrupted . | . . . . Allies Melted . | . . . . Intel | -11 -10 -10 -9 ------- Run | Scr Mat Min Mat Robot Analysis Total . | . . . . Derelict Logs Recovered . | . . . . Drone Launches . | . . . . Drone Recoveries . | . . . . Exploration | -11 -10 -10 -9 ------------- Run | Scr Mat Min Mat Turns Passed 1331 | 3 466 423 439 Spaces Moved 764 | 3 262 277 222 Core 3 | . . . 3 Treads . | . . . . Legs 761 | 3 262 277 219 Wheels . | . . . . Hover . | . . . . Flight . | . . . . Fastest Speed 50 | 120 120 120 50 Average Speed 119 | 120 120 120 119 Slowest Speed 120 | 120 120 120 120 Overloaded Moves . | . . . . Propulsion Burnouts . | . . . . Robots Hopped . | . . . . Cave-ins Triggered . | . . . . Exploration Rate (%) 31 | 2 43 53 26 Regions Visited 3 Branch Regions 1 Pre-discovered Areas . | . . . . Known Exits Taken 2 | . 1 1 . Unknown Exits Taken 1 | 1 . . . Scrap Searched . | . . . . Spaces Dug . | . . . . Terrain Destroyed 113 | . . 79 34 Melee . | . . . . Projectile . | . . . . AOE 113 | . . 79 34 Terrain Rammed . | . . . . Walls Destroyed . | . . . . Machines Disabled . | . . . . Actions | -11 -10 -10 -9 --------- Run | Scr Mat Min Mat Total 1035 | 2 385 337 311 Wait 125 | . 85 31 9 Move 761 | 2 261 276 222 Hop . | . . . . Pick Up 15 | . 6 1 8 Fast Attach 5 | . 2 1 2 Attach 11 | . . 2 9 Detach . | . . . . Swap 7 | . . 3 4 Drop 8 | . 7 . 1 Fire 74 | . 24 23 27 Melee 22 | . . . 22 Ram 7 | . . . 7 Kick . | . . . . Crush . | . . . . Escape Stasis . | . . . . Rewire . | . . . . Trap . | . . . . Miscellaneous . | . . . . Route ------- -11/Scrapyard -10/Materials (discovered 3 exits: *Mat / *Min x2) -10/Mines -9/Materials (discovered 1 exit: *Mat) History --------- Turn | Location | Event 1 | -11/Scrapyard | Discovered new exit (range 3) 4 | -11/Scrapyard | Entered Materials 22 | -10/Materials | Identified exit to Mines 250 | -10/Materials | Discovered new exit (range 16) 314 | -10/Materials | Build established: Mutant 470 | -10/Materials | Entered Mines 578 | -10/Mines | YI-UF0 nonchalantly dropped a Grenade Launcher on the ground 647 | -10/Mines | Assembled infested the area 749 | -10/Mines | Destroyed 7 combat bots 873 | -10/Mines | Discovered new exit (range 16) 891 | -10/Mines | Identified exit to Materials 893 | -10/Mines | Entered Materials 893 | -9/Materials | Evolved 2 slots: Propulsion x2 1005 | -9/Materials | Destroyed 13 combat bots 1028 | -9/Materials | Lost 3 parts (1p2w) 1169 | -9/Materials | Lost 8 parts (1p4n3w) 1248 | -9/Materials | Discovered new exit (range 3) 1249 | -9/Materials | Identified exit to Materials 1311 | -9/Materials | Core integrity fell below 50% 1331 | -9/Materials | Core integrity fell below 20% 1332 | -9/Materials | Self-destructed Last Messages --------------- 01208_ Aluminum Leg destroyed. 01208_ K-01 Serf collects debris. 01221_ Y-45 Defender destroyed. 01221_ K-01 Serf collects debris. 01224_ R-06 Scavenger collects Lgt. Treads. 01225_ K-01 Serf collects debris. 01226_ Acquired Lgt. Armor Plating. 01228_ R-06 Scavenger collects Imp. Ion Engine. 01228_ Acquired 40 matter. 01229_ K-01 Serf collects debris. 01230_ Acquired 60 matter. 01232_ K-01 Serf collects debris. 01248_ EXIT=FOUND 01249_ EXIT=IDENTIFIED: MATERIALS 01281_ K-01 Serf cleans the Material Compactor. 01286_ Acquired Autogun. 01290_ K-01 Serf cleans the Material Compactor. 01313_ W-16 Scout sends out distress signal. 01317_ Lgt. Armor Plating destroyed. 01320_ Aluminum Leg destroyed. Map ----- +----------------------------------------------------+ | ?????????????????????????????????????????????????? | | ?????????????????????????????????????????????????? | | ?????????????????????????????????????????????????? | | ?????????????????????????????????????????????????? | | ?????????????????????????????????????????????????? | | ?????????????????????????????????????????????????? | | ?????????????????????????????????????????????????? | | ?????????????????????????????????????????????????? | | ?????????????????????????????????????????????????? | | ?????????????????????????????????????????????????? | | ?????????????????????????????????????????????????? | | ?????????????????????????????????????????????????? | | ?????????????????????????????????????????????????? | | ?????????????????????????????????????????????????? | | ?????????????????????????????????????????????????? | | ?????????????????????????????????????????????????? | | ?????????????????????????????????????????????????? | | ?????????????????# ??????????????????????????????? | | ?????????????????# ?????????????????????????????? | | ?????????????????# ?????????????????????????????? | | ?????????????????# ????????????????????????????? | | ?????????????????# ????????????????????????????? | | ?????????????????# ???????????????????????????? | | ????????????? # #######????????????????????? | | ?????????????????+ k Y ##########/#?????????? | | ??????????????????????# @ ????????? | | ??????????????????????# ????????? | | ??????????????????????# k ????????? | | ??????????????????????# r############?????????? | | ??????????????????#######+###????????????????????? | | ??????????????????# #?????????????????????? | | ??????????????????# """ #?????????????????????? | | ??????????????????# """"" #?????????????????????? | | ??????????????????# """"" #?????????????????????? | | ??????????????????# """"" #?????????????????????? | | ??????????????????#! """ #?????????????????????? | | ??????????????????# #?????????????????????? | | ??????????????????# #?????????????????????? | | ??????????????????# #?????????????????????? | | ?????##################+########+#####???????????? | | ?????# ??????????? | | ?????# < ??????????? | | ?????# ??????????? | | ???######+######+######+#############+???????????? | | ???# # # #?????????????????? | | ???# # # #?????????????????? | | ???# # # #?????????????????? | | ???# # """ # """ #?????????????????? | | ???# # """"" # """"" #?????????????????? | | ???# # """"" # """"" #?????????????????? | +----------------------------------------------------+ Best States ------------- Heat Dissipation 28 Energy Generation 14 Energy Capacity 250 Matter Stores 405 Matter Capacity 500 Sight Range 16 Terrain Scan Density 10 Armor Coverage 150 Evasion (%) 40 Item Schematics ----------------- None Robot Schematics ------------------ None Fabricated ------------ Nothing Alien Tech Used ----------------- None Achievements -------------- Quick And Dirty Challenges ------------ None Game ------ Seed MolecularSkeletonScanner Manual? 0 Play Time 00:19:26 Cumulative 20.4 hours Start 2021.08.06 @ 17:38:23 End 2021.08.06 @ 17:56:17 Sessions 1 Manual Loads 0 Difficulty Rogue Special Mode None Game No. 35 Rogue 35 Adventurer 0 Explorer 0 Win Type - Total 0 Types 0/0/0/0/0/0/0/0/0 Lore% 20 Gallery% 24 Achievement% 17 Wizard Run 0 Options --------- ASCII 1 Keyboard 0 Movement Vi Keybinds 0 Fullscreen 2 Font 24/Smallcaps Map View 76x50 Tactical HUD 1 Map Filters NONE Filters NONE Steam 1 RUN: 80df8d03-a7ef-42b2-a0c5-ebadbc2e861e